[Event "NED-ch U14 Youth 2019"]
[Site "Assen"]
[Date "2019.04.29"]
[Round "3.9"]
[White "Bartels, Vladimir"]
[Black "Franke, Daniel"]
[Result "1-0"]
[ECO "B23"]
[WhiteElo "1748"]
[BlackElo "1465"]
[Annotator "NA RC"]
[PlyCount "57"]
[EventDate "2019.04.28"]
[EventType "swiss"]
[EventCountry "NED"]
[SourceTitle "playchess.com"]
[Source "ChessBase"]
[SourceQuality "1"]
[TimeControl "5400+30"]

1. e4 {[%emt 0:01:55]} c5 {[%emt 0:00:00]} 2. Nc3 {[%emt 0:00:09]} Nc6 {[%emt 0:00:06]} 3. Bb5 {[%emt 0:00:12]} g6 {[%emt 0:00:27]} 4. Bxc6 {[%emt 0:00:18]} bxc6 {[%emt 0:00:19]} 5. d4 {[%emt 0:00:17]} Bg7 {[%emt 0:00:47]} 6. dxc5 {[%emt 0:01:27]} Qa5 {[%emt 0:00:39]} 7. Bd2 {[%emt 0:00:30]} Qxc5 {[%emt 0:00:46]} 8. Nge2 {[%emt 0:06:29]} Nf6 {[%emt 0:02:02]} 9. O-O {[%emt 0:04:04]} O-O {[%emt 0:00:35]} 10. Be3 {[%emt 0:00:57]} Qb4 {[%emt 0:06:49]} 11. a3 {[%emt 0:19:12]} Qxb2 {[%emt 0:21:00]} 12. e5 {[%emt 0:09:52]} Ng4 {[%emt 0:07:24]} 13. Bc5 {[%emt 0:00:33]} Qb8 {[%emt 0:00:22]} 14. Bxe7 {[%emt 0:20:49]} Qxe5 {[%emt 0:01:04]} 15. Bd6 {[%emt 0:00:06]} Qh5 {[%emt 0:01:28]} 16. h3 {[%emt 0:01:12]} Be5 {[%emt 0:05:41]} 17. Bxf8 {[%emt 0:03:03]} Kxf8 {[%emt 0:00:52]} 18. Rb1 {[%emt 0:04:31]} Ba6 {[%emt 0:16:41]} 19. Qxd7 {[%emt 0:07:11]} Bxc3 {[%emt 0:12:07]} 20. Qd6+ {[%emt 0:08:09]} Kg8 {[%emt 0:05:44]} 21. Qxc6 {[%emt 0:00:22]} Rf8 {[%emt 0:11:07]} 22. hxg4 {[%emt 0:00:32]} Qa5 {[%emt 0:00:36]} 23. Qxc3 {[%emt 0:00:58]} Qg5 {[%emt 0:03:08]} 24. Nd4 {[%emt 0:04:50]} Bxf1 {[%emt 0:00:40]} 25. Kxf1 {[%emt 0:00:21]} Qxg4 {[%emt 0:00:23]} 26. Nc6 {[%emt 0:00:20]} Qh4 {[%emt 0:00:29]} 27. Rb7 {[%emt 0:01:13]} Re8 {[%emt 0:00:34]} 28. Ne7+ {[%emt 0:00:24]} Rxe7 {[%emt 0:01:14]} 29. Rb8+ {[%emt 0:00:08]} 1-0

[Event "NED-ch U14 Youth 2019"]
[Site "Assen"]
[Date "2019.04.29"]
[Round "3.10"]
[White "Bakija, Alan"]
[Black "Van Arendonk, Polle"]
[Result "1-0"]
[ECO "D77"]
[WhiteElo "1580"]
[BlackElo "1803"]
[Annotator "NA RC"]
[PlyCount "87"]
[EventDate "2019.04.28"]
[EventType "swiss"]
[EventCountry "NED"]
[SourceTitle "playchess.com"]
[Source "ChessBase"]
[SourceQuality "1"]
[TimeControl "5400+30"]

1. Nf3 {[%emt 0:00:00]} Nf6 {[%emt 0:00:00]} 2. g3 {[%emt 0:00:00]} g6 {[%emt 0:00:00]} 3. d4 {[%emt 0:00:00]} d5 {[%emt 0:00:05]} 4. Bg2 {[%emt 0:00:06]} Bg7 {[%emt 0:00:08]} 5. O-O {[%emt 0:00:05]} O-O {[%emt 0:00:09]} 6. c4 {[%emt 0:00:04]} dxc4 {[%emt 0:00:12]} 7. Nbd2 {[%emt 0:00:34] D77: Fianchetto Grünfeld: 6 0-0: Replies other than 6...c6} (7. Na3 c3 8. bxc3 c5 9. Re1 Nc6 10. Bb2 cxd4 11. cxd4 Ne4 12. Qc2 Nd6 13. Ne5 Be6 14. e3 Nb4 15. Qd2 a5 16. Bc3 Nd5 {½-½ (136) Howell,D (2697)-Naiditsch,A (2736) Germany 2019}) 7... c3 {[%emt 0:00:07]} 8. bxc3 {[%emt 0:00:06]} c5 {[%emt 0:00:11]} 9. Nb3 {[%emt 0:01:16]} cxd4 {[%emt 0:00:34]} 10. cxd4 {[%emt 0:00:12]} Nc6 {[%emt 0:00:33]} 11. Bb2 {[%emt 0:06:03]} Qb6 $146 {[%emt 0:03:57]} ({Predecessor:} 11... a5 12. Nc5 Nd7 13. Rc1 Nxc5 14. Rxc5 Bg4 {½-½ (30) Nguyen,V (2317)-Riess,A (2306) Budapest 2018}) 12. Nfd2 {[%emt 0:07:06]} Rd8 $1 {[%emt 0:04:01]} 13. Nc4 {[%emt 0:05:13]} Qc7 {[%emt 0:00:23]} (13... Qb5 $11 14. Na3 Qh5) 14. Rc1 {[%emt 0:01:44]} Be6 {[%emt 0:01:33]} 15. Ne3 {[%emt 0:23:04]} (15. Ne5 $16) 15... Qd7 $2 {[%emt 0:01:07]} (15... Qb6 $11 {and Black stays safe.}) 16. Nc5 {[%emt 0:00:24]} Qc8 {[%emt 0:01:26]} 17. Nxe6 {[%emt 0:26:12]} Qxe6 {[%emt 0:01:04]} 18. d5 {[%emt 0:00:21]} Qc8 $2 {[%emt 0:03:01]} (18... Nxd5 19. Bxd5 Rxd5 20. Qxd5 (20. Nxd5 Bxb2 21. Nc7 {[%mdl 64] Double Attack} Qc8 $18) 20... Qxd5 21. Nxd5 Bxb2) 19. Qb3 {[%emt 0:00:38]} Rb8 {[%emt 0:04:39]} 20. dxc6 {[%emt 0:00:56]} bxc6 {[%emt 0:00:03]} 21. Qc2 {[%emt 0:04:39]} Ng4 {[%emt 0:01:23]} 22. Bxg7 {[%emt 0:01:45]} Nxe3 {[%emt 0:00:18]} 23. fxe3 {[%emt 0:00:08]} Kxg7 {[%emt 0:00:05]} 24. Qxc6 {[%emt 0:00:45]} Qxc6 {[%emt 0:00:12]} 25. Rxc6 {[%emt 0:00:04]} Rb2 {[%emt 0:00:22]} 26. Rc7 {[%emt 0:00:25]} Rxa2 {[%emt 0:00:54]} 27. Rxe7 {[%emt 0:00:08]} Rf8 {[%emt 0:01:36] [#]} 28. Rexf7+ $3 {[%emt 0:03:28]} Rxf7 {[%emt 0:00:32]} 29. Rxf7+ $18 {[%emt 0:00:05]} Kxf7 {[%emt 0:00:05]} 30. Bd5+ {[%emt 0:00:06]} Kf6 {[%emt 0:00:29]} 31. Bxa2 {[%emt 0:00:03]} Ke5 {[%emt 0:00:13]} 32. Bg8 {[%emt 0:00:18]} h6 {[%emt 0:00:14]} 33. Kf2 {[%emt 0:00:17]} a5 {[%emt 0:00:11]} 34. Kf3 {[%emt 0:00:23]} a4 {[%emt 0:00:18]} 35. Ba2 {[%emt 0:00:18]} a3 {[%emt 0:00:11]} 36. h3 {[%emt 0:00:10]} h5 {[%emt 0:01:06]} 37. h4 {[%emt 0:00:15]} Kf5 {[%emt 0:00:10]} 38. e4+ {[%emt 0:00:09]} Ke5 {[%emt 0:00:31]} 39. e3 {[%emt 0:00:10]} Kf6 {[%emt 0:00:33]} 40. Kf4 {[%emt 0:00:16]} g5+ {[%emt 0:00:55]} 41. hxg5+ {[%emt 0:00:10]} Kg6 {[%emt 0:00:07]} 42. e5 {[%emt 0:00:13]} Kg7 {[%emt 0:00:11]} 43. e6 {[%emt 0:00:13]} Kf8 {[%emt 0:00:02]} 44. g6 {[%emt 0:00:12]} 1-0

[Event "NED-ch U14 Youth 2019"]
[Site "Assen"]
[Date "2019.04.29"]
[Round "3.11"]
[White "Arnold, Lorin"]
[Black "Dekker, Thiemen"]
[Result "1/2-1/2"]
[ECO "C41"]
[WhiteElo "1598"]
[BlackElo "1521"]
[Annotator "NA RC"]
[PlyCount "134"]
[EventDate "2019.04.28"]
[EventType "swiss"]
[EventCountry "NED"]
[SourceTitle "playchess.com"]
[Source "ChessBase"]
[SourceQuality "1"]
[TimeControl "5400+30"]

1. e4 {[%emt 0:00:00]} e5 {[%emt 0:00:00]} 2. d4 {[%emt 0:00:00]} d6 {[%emt 0:01:07]} 3. Bc4 {[%emt 0:00:54]} Be7 {[%emt 0:02:04]} 4. Nf3 {[%emt 0:00:49]} Nd7 {[%emt 0:01:31]} 5. O-O {[%emt 0:02:39]} Ngf6 {[%emt 0:01:14]} 6. c3 {[%emt 0:23:08]} O-O {[%emt 0:01:55]} 7. Ng5 {[%emt 0:00:23]} h6 {[%emt 0:02:20]} 8. Bxf7+ {[%emt 0:01:46]} Rxf7 {[%emt 0:01:17]} 9. Ne6 {[%emt 0:00:04]} Qe8 {[%emt 0:00:55]} 10. Nxc7 {[%emt 0:00:06]} Qd8 {[%emt 0:00:56]} 11. Nxa8 {[%emt 0:00:08]} Nxe4 {[%emt 0:05:42]} 12. dxe5 {[%emt 0:01:04]} Nxe5 {[%emt 0:05:25]} 13. Be3 {[%emt 0:01:42]} Nc6 {[%emt 0:06:14]} 14. Nd2 {[%emt 0:00:23]} Nxd2 {[%emt 0:01:27]} 15. Qxd2 {[%emt 0:00:08]} Bf5 {[%emt 0:05:22]} 16. Rad1 {[%emt 0:01:27]} Qxa8 {[%emt 0:02:03]} 17. Bf4 {[%emt 0:00:40]} Rf6 {[%emt 0:01:08]} 18. Rfe1 {[%emt 0:00:37]} Qd8 {[%emt 0:03:14]} 19. Re3 {[%emt 0:01:37]} Bc2 {[%emt 0:10:27]} 20. Qxc2 {[%emt 0:02:10]} Rxf4 {[%emt 0:00:22]} 21. Qb3+ {[%emt 0:00:12]} Rf7 {[%emt 0:04:01]} 22. Rf3 {[%emt 0:07:41]} Bf6 {[%emt 0:05:32]} 23. Rfd3 {[%emt 0:00:33]} Be5 {[%emt 0:01:31]} 24. Rf3 {[%emt 0:01:17]} Qe7 {[%emt 0:06:15]} 25. g3 {[%emt 0:20:35]} Kf8 {[%emt 0:19:19]} 26. Rxf7+ {[%emt 0:01:50]} Qxf7 {[%emt 0:00:30]} 27. Qxf7+ {[%emt 0:00:07]} Kxf7 {[%emt 0:00:17]} 28. f4 {[%emt 0:00:03]} Bf6 {[%emt 0:00:31]} 29. Rxd6 {[%emt 0:00:13]} Ke7 {[%emt 0:00:34]} 30. Rd3 {[%emt 0:00:27]} Ke6 {[%emt 0:01:01]} 31. Kf2 {[%emt 0:00:19]} h5 {[%emt 0:03:07]} 32. Ke3 {[%emt 0:02:45]} h4 {[%emt 0:01:00]} 33. g4 {[%emt 0:00:13]} g5 {[%emt 0:00:58]} 34. h3 {[%emt 0:00:50]} b6 {[%emt 0:01:59]} 35. Ke4 {[%emt 0:01:16]} gxf4 {[%emt 0:02:08]} 36. Kxf4 {[%emt 0:00:13]} Ne5 {[%emt 0:00:44]} 37. Re3 {[%emt 0:02:11]} Bg7 {[%emt 0:01:46]} 38. Rxe5+ {[%emt 0:06:10]} Bxe5+ {[%emt 0:00:26]} 39. Kg5 {[%emt 0:00:05]} Bf6+ {[%emt 0:00:19]} 40. Kh5 {[%emt 0:00:05]} Be7 {[%emt 0:01:11]} 41. g5 {[%emt 0:13:38]} Kf5 {[%emt 0:00:16]} 42. g6 {[%emt 0:00:03]} Bf6 {[%emt 0:00:34]} 43. c4 {[%emt 0:01:58]} Kf4 {[%emt 0:00:59]} 44. b4 {[%emt 0:00:23]} Ke4 {[%emt 0:01:07]} 45. Kh6 {[%emt 0:00:57]} Kd4 {[%emt 0:00:11]} 46. g7 {[%emt 0:00:27]} Bxg7+ {[%emt 0:00:06]} 47. Kxg7 {[%emt 0:00:02]} Kxc4 {[%emt 0:00:06]} 48. Kg6 {[%emt 0:00:07]} Kxb4 {[%emt 0:00:04]} 49. Kg5 {[%emt 0:00:07]} Ka3 {[%emt 0:00:04]} 50. Kxh4 {[%emt 0:00:03]} Kxa2 {[%emt 0:00:15]} 51. Kg4 {[%emt 0:00:08]} b5 {[%emt 0:00:08]} 52. h4 {[%emt 0:00:05]} b4 {[%emt 0:00:04]} 53. h5 {[%emt 0:00:10]} b3 {[%emt 0:00:03]} 54. h6 {[%emt 0:00:11]} b2 {[%emt 0:00:04]} 55. h7 {[%emt 0:00:03]} b1=Q {[%emt 0:00:25]} 56. h8=Q {[%emt 0:00:20]} a5 {[%emt 0:01:17]} 57. Kf4 {[%emt 0:01:02]} a4 {[%emt 0:00:48]} 58. Ke3 {[%emt 0:00:11]} Qb3+ {[%emt 0:01:12]} 59. Ke4 {[%emt 0:01:55]} a3 {[%emt 0:00:44]} 60. Qh5 {[%emt 0:00:29]} Qc2+ {[%emt 0:01:01]} 61. Kd4 {[%emt 0:00:33]} Kb1 {[%emt 0:00:45]} 62. Qh1+ {[%emt 0:00:28]} Qc1 {[%emt 0:00:30]} 63. Qe4+ {[%emt 0:00:30]} Ka1 {[%emt 0:01:28]} 64. Qf3 {[%emt 0:01:31]} a2 {[%emt 0:01:07]} 65. Qf5 {[%emt 0:03:30]} Qb2+ {[%emt 0:00:45]} 66. Kc4 {[%emt 0:00:22]} Qc1+ {[%emt 0:00:33]} 67. Kd4 {[%emt 0:00:52]} Qb2+ {[%emt 0:00:16]} 1/2-1/2

[Event "NED-ch U14 Youth 2019"]
[Site "Assen"]
[Date "2019.04.29"]
[Round "3.12"]
[White "De Putter, Sven"]
[Black "Van Kuijk, Vadim"]
[Result "0-1"]
[ECO "B23"]
[WhiteElo "1381"]
[BlackElo "1589"]
[Annotator "NA RC"]
[PlyCount "98"]
[EventDate "2019.04.28"]
[EventType "swiss"]
[EventCountry "NED"]
[SourceTitle "playchess.com"]
[Source "ChessBase"]
[SourceQuality "1"]
[TimeControl "5400+30"]

1. e4 {[%emt 0:00:00]} c5 {[%emt 0:00:00]} 2. Nc3 {[%emt 0:00:00]} e6 {[%emt 0:00:00]} 3. Bc4 {[%emt 0:01:48]} Nc6 {[%emt 0:01:04]} 4. f4 {[%emt 0:01:22]} Nge7 {[%emt 0:07:03]} 5. Nf3 {[%emt 0:00:26]} d5 {[%emt 0:01:07]} 6. Bb3 {[%emt 0:04:37]} dxe4 {[%emt 0:20:40]} 7. Nxe4 {[%emt 0:00:38]} Ng6 {[%emt 0:01:45]} 8. d3 {[%emt 0:02:04]} Qc7 {[%emt 0:06:21]} 9. Qd2 {[%emt 0:05:34]} Bd7 {[%emt 0:07:09]} 10. Qe3 {[%emt 0:01:47]} b6 {[%emt 0:04:16]} 11. f5 {[%emt 0:03:28]} Nge7 {[%emt 0:24:50]} 12. fxe6 {[%emt 0:08:36]} fxe6 {[%emt 0:02:17]} 13. Neg5 {[%emt 0:04:30]} Nf5 {[%emt 0:03:22]} 14. Qe2 {[%emt 0:07:24]} O-O-O {[%emt 0:13:51]} 15. Nxe6 {[%emt 0:02:26]} Ncd4 {[%emt 0:03:03]} 16. Nfxd4 {[%emt 0:08:44]} Nxd4 {[%emt 0:00:31]} 17. Nxc7 {[%emt 0:03:35]} Nxe2 {[%emt 0:00:10]} 18. Bg5 {[%emt 0:01:50]} Nd4 {[%emt 0:00:55]} 19. Bxd8 {[%emt 0:00:59]} Kxd8 {[%emt 0:00:15]} 20. Nd5 {[%emt 0:00:45]} Bd6 {[%emt 0:00:45]} 21. O-O {[%emt 0:01:40]} Bc6 {[%emt 0:00:28]} 22. Ne3 {[%emt 0:07:13]} Re8 {[%emt 0:00:30]} 23. Nf5 {[%emt 0:02:32]} Re2 {[%emt 0:00:27]} 24. Nh4 {[%emt 0:02:45]} g5 {[%emt 0:00:33]} 25. Nf3 {[%emt 0:03:22]} g4 {[%emt 0:00:34]} 26. Nh4 {[%emt 0:05:29]} Be7 {[%emt 0:00:27]} 27. Rae1 {[%emt 0:06:41]} Rxe1 {[%emt 0:00:30]} 28. Rxe1 {[%emt 0:00:13]} Bxh4 {[%emt 0:00:09]} 29. Re5 {[%emt 0:02:11]} Nxb3 {[%emt 0:00:49]} 30. axb3 {[%emt 0:00:32]} Bf6 {[%emt 0:00:35]} 31. Re6 {[%emt 0:02:50]} Bd4+ {[%emt 0:00:19]} 32. Kh1 {[%emt 0:00:42]} Bd7 {[%emt 0:00:26]} 33. Rh6 {[%emt 0:00:51]} Bxb2 {[%emt 0:00:26]} 34. Rxh7 {[%emt 0:00:10]} a5 {[%emt 0:00:32]} 35. Rh6 {[%emt 0:00:46]} Kc7 {[%emt 0:00:34]} 36. Rh7 {[%emt 0:04:57]} Kc6 {[%emt 0:00:39]} 37. h4 {[%emt 0:01:15]} gxh3 {[%emt 0:00:19]} 38. gxh3 {[%emt 0:01:07]} b5 {[%emt 0:00:43]} 39. Rh4 {[%emt 0:01:14]} Kd5 {[%emt 0:00:25]} 40. Rh5+ {[%emt 0:02:23]} Be5 {[%emt 0:00:28]} 41. c4+ {[%emt 0:00:11]} Kd4 {[%emt 0:00:38]} 42. Rh7 {[%emt 0:00:37]} Bc6+ {[%emt 0:00:15]} 43. Kg1 {[%emt 0:00:08]} Kxd3 {[%emt 0:00:29]} 44. cxb5 {[%emt 0:00:34]} Bd4+ {[%emt 0:00:33]} 45. Kf1 {[%emt 0:00:04]} Bxb5 {[%emt 0:00:18]} 46. Ra7 {[%emt 0:01:17]} Kc3+ {[%emt 0:00:22]} 47. Ke1 {[%emt 0:00:31]} Kb4 {[%emt 0:00:30]} 48. h4 {[%emt 0:00:29]} c4 {[%emt 0:00:15]} 49. Rb7 {[%emt 0:00:41]} cxb3 {[%emt 0:00:17]} 0-1

[Event "NED-ch U14 Youth 2019"]
[Site "Assen"]
[Date "2019.04.29"]
[Round "3.13"]
[White "Tiggelman, Vincent"]
[Black "De Heij, Mees"]
[Result "0-1"]
[ECO "B50"]
[WhiteElo "1378"]
[BlackElo "1524"]
[Annotator "NA RC"]
[PlyCount "53"]
[EventDate "2019.04.28"]
[EventType "swiss"]
[EventCountry "NED"]
[SourceTitle "playchess.com"]
[Source "ChessBase"]
[SourceQuality "1"]
[TimeControl "5400+30"]

1. e4 {[%emt 0:00:00]} c5 {[%emt 0:00:00]} 2. Nf3 {[%emt 0:00:00]} Nc6 {[%emt 0:00:00]} 3. d3 {[%emt 0:00:00]} d6 {[%emt 0:00:00]} 4. g3 {[%emt 0:00:05]} e5 {[%emt 0:00:55]} 5. Bg2 {[%emt 0:00:51]} Bg4 {[%emt 0:01:04]} 6. Nbd2 {[%emt 0:00:50]} Nf6 {[%emt 0:00:44]} 7. O-O {[%emt 0:00:41]} Be7 {[%emt 0:01:23]} 8. c3 {[%emt 0:03:59]} O-O {[%emt 0:02:03]} 9. Re1 {[%emt 0:06:17]} Qd7 {[%emt 0:01:25]} 10. Nf1 {[%emt 0:02:42]} h6 {[%emt 0:04:36]} 11. Ne3 {[%emt 0:03:53]} Be6 {[%emt 0:00:49]} 12. h4 {[%emt 0:19:19]} Rac8 {[%emt 0:00:48]} 13. Nh2 {[%emt 0:03:45]} Rfd8 {[%emt 0:02:48]} 14. c4 {[%emt 0:38:17]} a6 {[%emt 0:01:55]} 15. b3 {[%emt 0:01:54]} Nd4 {[%emt 0:14:47]} 16. Rf1 {[%emt 0:00:57]} Rb8 {[%emt 0:11:00]} 17. f4 {[%emt 0:00:48]} exf4 {[%emt 0:02:47]} 18. Rxf4 {[%emt 0:00:13]} Nh7 {[%emt 0:04:02]} 19. Bb2 {[%emt 0:03:13]} Bf6 {[%emt 0:00:32]} 20. Qd2 {[%emt 0:01:02]} Be5 {[%emt 0:00:35]} 21. Rff1 {[%emt 0:02:17]} Bxg3 {[%emt 0:01:00]} 22. Bxd4 {[%emt 0:03:13]} cxd4 {[%emt 0:00:08]} 23. Nf5 {[%emt 0:01:03]} Bxf5 {[%emt 0:00:25]} 24. Rxf5 {[%emt 0:00:10]} Bxh4 {[%emt 0:01:14]} 25. Raf1 {[%emt 0:01:56]} Bg5 {[%emt 0:03:39]} 26. Qe2 {[%emt 0:02:04]} Nf6 {[%emt 0:03:45]} 27. Qf3 {[%emt 0:04:01]} 0-1

[Event "NED-ch U14 Youth 2019"]
[Site "Assen"]
[Date "2019.04.30"]
[Round "4.1"]
[White "Brandsma, Romayn"]
[Black "Labruyere, Roger"]
[Result "0-1"]
[ECO "B22"]
[WhiteElo "1958"]
[BlackElo "1922"]
[Annotator "NA"]
[PlyCount "68"]
[EventDate "2019.04.28"]
[EventType "swiss"]
[EventCountry "NED"]
[SourceTitle "playchess.com"]
[Source "ChessBase"]
[SourceQuality "1"]
[TimeControl "5400+30"]

{[%evp 15,66,-13,32767,32767,32767,32767,32767,32767,32767,32767,-16,32767,0,-4,32767,32767,2,-40,-29,-33,32767,-39,-53,32767,-100,32767,-116,-192,-210,-252,-318,-360,-372,-29988,-29989,32767,32767,32767,32767,32767,32767,-1203,32767,-2102,-6399,-5602,32767,-1099,-1102,-2595,32767,32767,-1273]} 1. e4 {[%emt 1:30:30]} c5 {[%emt 0:00:07]} 2. c3 {[%emt 0:00:00]} Nf6 {[%emt 0:00:05]} 3. e5 {[%emt 0:00:00]} Nd5 {[%emt 0:00:04]} 4. g3 {[%emt 0:00:00]} d6 {[%emt 0:00:12]} 5. d4 {[%emt 0:00:00]} (5. exd6 e6 6. Bg2 Bxd6 7. Nf3 Nc6 8. O-O O-O 9. d4 cxd4 10. Nxd4 Nxd4 11. Qxd4 Qc7 12. Nd2 Rd8 13. Qc4 Bc5 14. Qe2 Bd7 15. Nb3 Bf8 16. c4 Nb4 17. Bf4 Qc8 18. Na5 Nc6 19. Nxc6 Bxc6 20. Rfd1 Bxg2 21. Rxd8 Qxd8 22. Kxg2 a6 23. Rd1 Qe8 24. Qe4 b5 25. Bd6 bxc4 26. Bxf8 Qxf8 27. Kf3 {½-½ (27) Marcelin,C (2462)-Van Wely,L (2667) Brest 2018}) 5... cxd4 {[%emt 0:00:19]} 6. cxd4 {[%emt 0:00:00] B22: Sicilian: 2 c3} Nc6 {[%emt 0:01:21]} 7. Bg2 {[%emt 0:00:00]} e6 {[%emt 0:01:06]} 8. Nf3 {[%emt 0:00:00]} Be7 {[%emt 0:06:56]} 9. O-O {[%emt 0:00:00]} O-O {[%emt 0:00:06]} 10. Nbd2 $146 {[%emt 0:00:00]} ({Predecessor:} 10. exd6 Qxd6 11. Nc3 Rd8 12. Re1 Bd7 13. Ng5 h6 14. Nge4 {½-½ (31) Rozentalis,E (2557)-Westerberg,J (2488) Gothenburg 2016}) 10... dxe5 {[%emt 0:01:13]} 11. dxe5 {[%emt 0:00:00]} Qc7 {[%emt 0:00:52]} 12. Nc4 {[%emt 0:00:00]} b5 {[%emt 0:04:36]} 13. Ne3 {[%emt 0:00:00]} Rd8 {[%emt 0:03:36]} 14. Nxd5 {[%emt 0:00:00]} Rxd5 {[%emt 0:00:19]} 15. Qc2 {[%emt 0:00:00]} Rc5 {[%emt 0:09:46]} 16. Qd3 {[%emt 0:00:00]} Bb7 {[%emt 0:05:10]} 17. Be3 {[%emt 0:00:00]} Rd8 {[%emt 0:04:43]} 18. Qb1 {[%emt 0:00:00]} Rcd5 {[%emt 0:08:07]} 19. Ng5 {[%emt 0:00:00] [#]} Bxg5 $1 {[%emt 0:07:22]} 20. Bxg5 {[%emt 0:00:00] [#]} f6 $1 {[%emt 0:02:05]} 21. Bxd5 {[%emt 0:00:00]} (21. Be3 $17 Nxe5 22. Bf4) 21... Rxd5 {[%emt 0:00:11]} 22. Be3 {[%emt 0:00:00]} (22. Bf4 {was called for.} g5 23. Qc1 gxf4 24. Qxf4) 22... Nxe5 {[%emt 0:02:06]} 23. f3 {[%emt 0:00:00]} Rd3 {[%emt 0:04:11]} 24. Bf4 $2 {[%emt 0:00:00]} (24. Qc1 $19 Qd7 25. Qc5) 24... Qc5+ {[%emt 0:01:02]} 25. Rf2 {[%emt 0:00:00]} Nxf3+ {[%emt 0:04:37]} 26. Kf1 {[%emt 0:00:00]} Qc4 {[%emt 0:04:58]} 27. Re2 {[%emt 0:00:00]} Rd2 {[%emt 0:06:37]} 28. Bxd2 {[%emt 0:00:00]} Nxd2+ {[%emt 0:00:14]} 29. Kf2 {[%emt 0:14:00]} Nxb1 {[%emt 0:00:08]} 30. Rxb1 {[%emt 0:00:00]} Qd4+ {[%emt 0:00:14]} 31. Re3 {[%emt 0:00:00]} f5 {[%emt 0:01:26]} 32. Ke2 $19 {[%emt 0:00:00]} Qc4+ {[%emt 0:00:04]} 33. Kd2 {[%emt 0:00:00]} Qxa2 {[%emt 0:00:07]} 34. Kc2 {[%emt 0:00:00]} Be4+ {[%emt 0:00:06]} 0-1

[Event "NED-ch U14 Youth 2019"]
[Site "Assen"]
[Date "2019.04.30"]
[Round "4.2"]
[White "Van der Hagen, Loek"]
[Black "Pham, Khoi"]
[Result "0-1"]
[ECO "B96"]
[WhiteElo "1931"]
[BlackElo "2140"]
[Annotator "NA"]
[PlyCount "88"]
[EventDate "2019.04.28"]
[EventType "swiss"]
[EventCountry "NED"]
[SourceTitle "playchess.com"]
[Source "ChessBase"]
[SourceQuality "1"]
[TimeControl "5400+30"]

1. e4 {[%emt 0:00:00]} c5 {[%emt 0:00:00]} 2. Nf3 {[%emt 0:00:00]} d6 {[%emt 0:00:00]} 3. d4 {[%emt 0:00:00]} cxd4 {[%emt 0:00:00]} 4. Nxd4 {[%emt 0:00:00]} Nf6 {[%emt 0:00:00]} 5. Nc3 {[%emt 0:00:00]} a6 {[%emt 0:00:00]} 6. Bg5 {[%emt 0:00:00]} e6 {[%emt 0:00:05]} 7. f4 {[%emt 0:00:02]} Nbd7 {[%emt 0:00:04]} 8. Qf3 {[%emt 0:00:10]} Qc7 {[%emt 0:00:15]} 9. O-O-O {[%emt 0:00:09]} b5 {[%emt 0:00:03]} 10. Bd3 {[%emt 0:00:42]} Bb7 {[%emt 0:00:17]} 11. Rhe1 {[%emt 0:00:22]} Qb6 {[%emt 0:00:30]} 12. Nd5 {[%emt 0:07:30] B96: Sicilian Najdorf: 6 Bg5 e6 7 f4, lines other than 7...Qb6 and 7...Be7} (12. Bxf6 Nxf6 13. f5 b4 14. Nce2 e5 15. Nb3 h5 16. Kb1 Be7 17. Nd2 Rc8 18. Nc4 Rxc4 19. Bxc4 Bxe4 20. Qb3 O-O {½-½ (39) Jakovenko,D (2735)-Gelfand,B (2731) Ashdod 2015}) 12... Qxd4 {[%emt 0:01:01]} 13. Bxb5 {[%emt 0:00:17]} Qc5 {[%emt 0:04:26]} 14. b4 {[%emt 0:00:09]} Qc8 {[%emt 0:08:27]} 15. Nb6 {[%emt 0:17:36] Double Attack} Qc7 {[%emt 0:02:14]} 16. Nxa8 {[%emt 0:02:03]} Bxa8 {[%emt 0:00:05]} 17. Bxd7+ $146 {[%emt 0:03:46]} ({Predecessor:} 17. Bxa6 Be7 18. Qd3 O-O 19. Bb5 h6 {0-1 (30) Bogner,S (2401)-Shneider,A (2532) Cappelle-la-Grande 2008}) 17... Nxd7 {[%emt 0:01:06]} 18. Qb3 {[%emt 0:02:05]} Be7 {[%emt 0:07:38]} 19. Bxe7 {[%emt 0:00:57]} Kxe7 {[%emt 0:00:04]} 20. Rd4 {[%emt 0:04:21]} Rc8 {[%emt 0:04:41]} 21. Red1 {[%emt 0:06:30]} Nb6 {[%emt 0:02:04]} 22. f5 $2 {[%emt 0:11:18]} (22. R1d2 {is a better defense.}) 22... e5 {[%emt 0:02:27]} 23. Rxd6 {[%emt 0:06:19]} Bxe4 {[%emt 0:00:21] Double Attack} 24. f6+ {[%emt 0:00:59]} gxf6 {[%emt 0:00:15]} 25. R6d2 {[%emt 0:00:29]} Bf5 {[%emt 0:06:05]} 26. Rf2 {[%emt 0:02:45]} Be6 {[%emt 0:03:49]} 27. Qf3 {[%emt 0:00:35]} f5 {[%emt 0:00:30]} 28. Qg3 {[%emt 0:04:48]} Qc3 {[%emt 0:07:57]} 29. Qxc3 {[%emt 0:03:36]} Rxc3 {[%emt 0:00:04]} 30. Kb1 {[%emt 0:01:34]} e4 {[%emt 0:04:53]} 31. Re1 {[%emt 0:01:49]} Kd6 {[%emt 0:02:11]} 32. g4 {[%emt 0:01:59]} Ke5 {[%emt 0:00:43]} 33. gxf5 {[%emt 0:00:23]} Bxf5 {[%emt 0:00:10]} 34. Ref1 {[%emt 0:00:46]} Be6 {[%emt 0:00:42]} 35. Re1 {[%emt 0:03:05]} f5 {[%emt 0:00:37]} 36. Kb2 {[%emt 0:02:03]} Rh3 $19 {[%emt 0:00:18]} 37. Rg2 {[%emt 0:01:23]} Nc4+ {[%emt 0:00:15]} 38. Kc1 {[%emt 0:00:23]} e3 {[%emt 0:01:48]} 39. a4 {[%emt 0:00:46]} f4 {[%emt 0:00:28]} 40. b5 {[%emt 0:00:38]} axb5 {[%emt 0:00:06]} 41. axb5 {[%emt 0:00:06]} Ke4 {[%emt 0:01:39]} 42. Rg7 {[%emt 0:00:48]} f3 {[%emt 0:01:23]} 43. Re7 {[%emt 0:00:21]} f2 {[%emt 0:00:43]} 44. Rxe6+ {[%emt 0:00:09]} Kf5 {[%emt 0:00:24]} 0-1